fUSD/lending_fUSD_20260225
["ID","MTS","AMOUNT","RATE_DAILY","PERIOD"]
[406634821,1772000209671,-650.0,0.00048312,10]
[406634822,1772000209733,-250.0,0.00048348,10]
[406634823,1772000209797,-250.0,0.00048348,10]
[406634824,1772000209851,-152.72020798,0.00048357,120]
[406634825,1772000209905,-553.0,0.00048432,120]
[406634826,1772000209970,-4984.39399258,0.00048514,120]
[406634827,1772000210029,-504.0,0.0004852,10]
[406634828,1772000210083,-999.7,0.00048577,120]
[406634829,1772000210139,-874.39346076,0.0004869,120]
[406634830,1772000210196,-212.08,0.00048849,30]
[406634831,1772000210252,-457.79287532,0.0004886,10]
[406634832,1772000210304,-452.5658885,0.0004886,10]
[406634833,1772000210360,-454.0,0.00048886,120]
[406634834,1772000210411,-4222.31136099,0.00048889,120]
[406634835,1772000210461,-350.0,0.00048896,10]
[406634836,1772000210513,-350.0,0.00048896,10]
[406634837,1772000210570,-210.0,0.0004899,30]
[406634838,1772000210622,-250.0,0.00049,120]
[406634839,1772000210678,-2465.0,0.00049,120]
[406634840,1772000210734,-1000.0,0.00049,120]
[406634841,1772000210793,-164.23599846,0.00049,120]
[406634842,1772000210844,-170.17565069,0.00049,120]
[406634843,1772000210899,-159.24956871,0.00049,120]
[406634844,1772000210951,-155.48219557,0.00049004,120]
[406634845,1772000211008,-189.70710475,0.00049004,30]
[406634846,1772000211060,-927.58979092,0.00049004,120]
[406634847,1772000211111,-46788.0,0.0004905,60]
[406634848,1772000211165,-503.2734133,0.0004917,10]
[406634849,1772000211217,-66417.83315475,0.000492,120]
[406634850,1772000211271,-153.0,0.000492,120]
[406634851,1772000211320,-1201.820249,0.000492,120]
[406634852,1772000211373,-1201.820249,0.000492,120]
[406634853,1772000211425,-1201.820249,0.000492,120]
[406634854,1772000211473,-1201.820249,0.000492,120]
[406634855,1772000211521,-151.0,0.000492,120]
[406634856,1772000211568,-397.003705,0.000492,120]
[406634857,1772000211616,-397.003705,0.000492,120]
[406634858,1772000211664,-397.003705,0.000492,120]
[406634859,1772000211714,-397.003705,0.000492,120]
[406634860,1772000211767,-179.38963,0.000492,120]
[406634861,1772000211823,-179.38963,0.000492,120]
[406634862,1772000211872,-179.38963,0.000492,120]
[406634863,1772000211925,-179.38963,0.000492,120]
[406634864,1772000211975,-151.0,0.000492,120]
[406634865,1772000212030,-151.0,0.000492,120]
[406634866,1772000212080,-926.861553,0.000492,120]
[406634867,1772000212131,-926.861553,0.000492,120]
[406634868,1772000212184,-2432.301964,0.000492,120]
[406634869,1772000212239,-151.0,0.000492,120]
[406634870,1772000212293,-926.861553,0.000492,120]
[406634871,1772000212345,-2432.301964,0.000492,120]
[406634872,1772000212395,-151.0,0.000492,120]
[406634873,1772000212445,-926.861558,0.000492,120]
[406634874,1772000212495,-2432.301964,0.000492,120]
[406634875,1772000212546,-2432.301955,0.000492,120]
[406634876,1772000212597,-3152.420114,0.000492,28]
[406634877,1772000212647,-3152.420114,0.000492,28]
[406634878,1772000212696,-3152.420114,0.000492,28]
[406634879,1772000212747,-3152.420112,0.000492,28]
[406634880,1772000212800,-1737.532163,0.000492,120]
[406634881,1772000212852,-1737.532163,0.000492,120]
[406634882,1772000212907,-1737.532163,0.000492,120]
[406634883,1772000212964,-1737.532171,0.000492,120]
[406634884,1772000213024,-694.712671,0.000492,120]
[406634885,1772000213084,-694.712671,0.000492,120]
[406634886,1772000213145,-694.712671,0.000492,120]
[406634887,1772000213206,-694.71267,0.000492,120]
[406634888,1772000213266,-698.560104,0.000492,120]
[406634889,1772000213322,-698.560104,0.000492,120]
[406634890,1772000213374,-698.560104,0.000492,120]
[406634891,1772000213429,-698.5601,0.000492,120]
[406634892,1772000213479,-211.224642,0.000492,120]
[406634893,1772000213528,-502.131486,0.000492,120]
[406634894,1772000213577,-502.131486,0.000492,120]
[406634895,1772000213629,-502.131486,0.000492,120]
[406634896,1772000213684,-502.131493,0.000492,120]
[406634897,1772000213736,-231.502102,0.000492,120]
[406634898,1772000213789,-231.502102,0.000492,120]
[406634899,1772000213840,-231.502102,0.000492,120]
[406634900,1772000213890,-231.502103,0.000492,120]
[406634901,1772000214096,-151.0,0.000492,120]
[406634902,1772000214148,-151.0,0.000492,120]
[406634903,1772000214201,-151.0,0.000492,120]
[406634904,1772000214251,-151.0,0.000492,60]
[406634905,1772000214300,-151.0,0.000492,120]
[406634906,1772000214354,-999.7,0.00049277,120]
[406634907,1772000214401,-150.0,0.00049363,30]
[406634908,1772000214456,-1444.0,0.0004937,120]
[406634909,1772000214504,-450.0,0.00049444,10]
[406634910,1772000214552,-450.0,0.00049444,10]
[406634911,1772000214604,-5000000.0,0.000495,120]
[406634912,1772000214650,-151.0,0.000495,120]
[406634913,1772000214696,-151.0,0.000495,120]
[406634914,1772000214745,-281.008872,0.000495,120]
[406634915,1772000214794,-281.008872,0.000495,120]
[406634916,1772000214841,-281.008872,0.000495,120]
[406634917,1772000214888,-281.008872,0.000495,120]
[406634918,1772000214939,-151.0,0.000495,120]
[406634919,1772000214987,-151.0,0.000495,120]
[406634920,1772000215036,-250.308914,0.000495,120]
[406634921,1772000215086,-151.0,0.000495,120]
[406634922,1772000215135,-151.0,0.000495,120]
[406634923,1772000215187,-151.0,0.000495,120]
[406634924,1772000215239,-151.0,0.000495,30]
[406634925,1772000215297,-256.73129237,0.000495,120]
[406634926,1772000215353,-151.0,0.000495,120]
[406634927,1772000215402,-151.0,0.000495,120]
[406634928,1772000215452,-151.0,0.000495,14]
[406634929,1772000215501,-151.0,0.000495,14]
[406634930,1772000215554,-151.0,0.000495,14]
[406634931,1772000215607,-1201.820249,0.000495,120]
[406634932,1772000215662,-1201.820249,0.000495,120]
[406634933,1772000215718,-1201.820249,0.000495,120]
[406634934,1772000215773,-1201.82024,0.000495,120]
[406634935,1772000215830,-151.0,0.000495,120]
[406634936,1772000215880,-397.003705,0.000495,120]
[406634937,1772000215930,-397.003705,0.000495,120]
[406634938,1772000215983,-397.003705,0.000495,120]
[406634939,1772000216037,-397.003703,0.000495,120]
[406634940,1772000216090,-179.38963,0.000495,120]
[406634941,1772000216140,-179.38963,0.000495,120]
[406634942,1772000216194,-179.38963,0.000495,120]
[406634943,1772000216245,-179.389624,0.000495,120]
[406634944,1772000216296,-151.0,0.000495,120]
[406634945,1772000216345,-291.884165,0.000495,120]
[406634946,1772000216397,-184.593147,0.000495,60]
[406634947,1772000216448,-151.0,0.000495,120]
[406634948,1772000216496,-154.0,0.000496,120]
[406634949,1772000216545,-872.52,0.00049613,30]
[406634950,1772000216594,-504.0,0.00049951,13]
[406634951,1772000216648,-999.7,0.00049977,120]
[406634952,1772000216697,-550.0,0.00049992,10]
[406634953,1772000216747,-550.0,0.00049992,10]
[406634954,1772000216798,-462.17414046,0.00049999,15]
[406634955,1772000216848,-393.15416342,0.00049999,120]
[406634956,1772000216899,-322.42567929,0.00049999,120]
[406634957,1772000216948,-484.05516236,0.00049999,120]
[406634958,1772000216999,-500.0,0.00049999,120]
[406634959,1772000217053,-558.08520446,0.00049999,120]
[406634960,1772000217105,-530.43929432,0.00049999,120]
[406634961,1772000217160,-430.09569458,0.00049999,120]
[406634962,1772000217214,-500.0,0.00049999,120]
[406634963,1772000217268,-500.0,0.00049999,120]
[406634964,1772000217320,-500.0,0.00049999,120]
[406634965,1772000217371,-500.0,0.00049999,120]
[406634966,1772000217421,-500.0,0.00049999,120]
[406634967,1772000217471,-500.0,0.00049999,120]
[406634968,1772000217522,-823.70465006,0.00049999,120]
[406634969,1772000217574,-823.70465006,0.00049999,120]
[406634970,1772000217623,-643.59975326,0.00049999,120]
[406634971,1772000217676,-823.70465006,0.00049999,120]
[406634972,1772000217728,-823.70465006,0.00049999,120]
[406634973,1772000217779,-500.0,0.00049999,120]
[406634974,1772000217830,-823.70465006,0.00049999,120]
[406634975,1772000217880,-823.70465006,0.00049999,120]
[406634976,1772000217933,-823.70465006,0.00049999,120]
[406634977,1772000217989,-823.70465006,0.00049999,120]
[406634978,1772000218046,-823.70465006,0.00049999,120]
[406634979,1772000218102,-823.70465006,0.00049999,120]
[406634980,1772000218156,-823.70465006,0.00049999,120]
[406634981,1772000218210,-823.70465006,0.00049999,120]
[406634982,1772000218263,-823.70465006,0.00049999,120]
[406634983,1772000218314,-823.70465006,0.00049999,120]
[406634984,1772000218368,-823.70465006,0.00049999,120]
[406634985,1772000218421,-823.70465006,0.00049999,120]
[406634986,1772000218474,-823.70465006,0.00049999,120]
[406634987,1772000218527,-823.70465006,0.00049999,120]
[406634988,1772000218707,-823.70465006,0.00049999,120]
[406634989,1772000218762,-823.70465006,0.00049999,120]
[406634990,1772000218819,-823.70465006,0.00049999,120]
[406634991,1772000218875,-823.70465006,0.00049999,120]
[406634992,1772000218930,-823.70465006,0.00049999,120]
[406634993,1772000218986,-823.70465006,0.00049999,120]
[406634994,1772000219050,-823.70465006,0.00049999,120]
[406634995,1772000219104,-823.70465006,0.00049999,120]
[406634996,1772000219164,-823.70465006,0.00049999,120]
[406634997,1772000219224,-823.70465006,0.00049999,120]
[406634998,1772000219283,-823.70465006,0.00049999,120]
[406634999,1772000219339,-823.70465006,0.00049999,120]
[406635000,1772000219393,-823.70465006,0.00049999,120]
[406635001,1772000219454,-823.70465006,0.00049999,120]
[406635002,1772000219510,-823.70465006,0.00049999,120]
[406635003,1772000219566,-823.70465006,0.00049999,120]
[406635004,1772000219622,-823.70465006,0.00049999,120]
[406635005,1772000219680,-823.70465006,0.00049999,120]
[406635006,1772000219739,-823.70465006,0.00049999,120]
[406635007,1772000219799,-823.70465006,0.00049999,120]
[406635008,1772000219856,-823.70465006,0.00049999,120]
[406635009,1772000219910,-823.70465006,0.00049999,120]
[406635010,1772000219969,-823.70465006,0.00049999,120]
[406635011,1772000220031,-818.3904265,0.00049999,120]
[406635012,1772000220094,-818.3904265,0.00049999,120]
[406635013,1772000220155,-818.3904265,0.00049999,120]
[406635014,1772000220216,-818.3904265,0.00049999,120]
[406635015,1772000220279,-818.3904265,0.00049999,120]
[406635016,1772000220340,-818.3904265,0.00049999,120]
[406635017,1772000220399,-818.3904265,0.00049999,120]
[406635018,1772000220460,-818.3904265,0.00049999,120]
[406635019,1772000220520,-818.3904265,0.00049999,120]
[406635020,1772000220579,-818.3904265,0.00049999,120]
[406635021,1772000220639,-818.3904265,0.00049999,120]
[406635022,1772000220701,-818.3904265,0.00049999,120]
[406635023,1772000220759,-818.3904265,0.00049999,120]
[406635024,1772000220815,-818.3904265,0.00049999,120]
[406635025,1772000220870,-818.3904265,0.00049999,120]
[406635026,1772000220924,-818.3904265,0.00049999,120]
[406635027,1772000220978,-818.3904265,0.00049999,120]
[406635028,1772000221031,-818.3904265,0.00049999,120]
[406635029,1772000221082,-818.3904265,0.00049999,120]
[406635030,1772000221133,-818.3904265,0.00049999,120]
[406635031,1772000221186,-818.3904265,0.00049999,120]
[406635032,1772000221238,-789.27461325,0.00049999,120]
[406635033,1772000221290,-789.27461325,0.00049999,120]
[406635034,1772000221342,-789.27461325,0.00049999,120]
[406635035,1772000221395,-789.27461325,0.00049999,120]
[406635036,1772000221450,-789.27461325,0.00049999,120]
[406635037,1772000221501,-789.27461325,0.00049999,120]
[406635038,1772000221550,-789.27461325,0.00049999,120]
[406635039,1772000221603,-789.27461325,0.00049999,120]
[406635040,1772000221653,-44382.49,0.0005,120]
[406635041,1772000221702,-11000.0,0.0005,30]
[406635042,1772000221757,-150.0,0.0005,120]
[406635043,1772000221807,-1660.44325055,0.0005,120]
[406635044,1772000221861,-200.0,0.0005,120]
[406635045,1772000221918,-397633.0,0.0005,42]
[406635046,1772000221971,-2082.99,0.0005,120]
[406635047,1772000222027,-1986.984008,0.0005,120]
[406635048,1772000222080,-171.74476938,0.0005,120]
[406635049,1772000222131,-368.79117042,0.0005,120]
[406635050,1772000222180,-469.45626479,0.0005,120]
[406635051,1772000222230,-163.45388225,0.0005,120]
[406635052,1772000222283,-160.83888574,0.0005,14]
[406635053,1772000222332,-9221.0,0.0005,90]
[406635054,1772000222380,-150.0,0.0005,40]
[406635055,1772000222429,-3692.98292617,0.0005,120]
[406635056,1772000222478,-365.95,0.0005,120]
[406635057,1772000222528,-1990.43187338,0.0005,120]
[406635058,1772000222576,-150.0,0.0005,30]
[406635059,1772000222626,-1221.7,0.00050062,120]
[406635060,1772000222679,-553.0,0.00050064,120]
[406635061,1772000222730,-150.0,0.00050322,120]
[406635062,1772000222781,-152.72020798,0.0005046,120]
[406635063,1772000222832,-650.0,0.0005054,10]
[406635064,1772000222882,-650.0,0.0005054,10]
[406635065,1772000222936,-1837.0,0.00050673,120]
[406635066,1772000222996,-999.7,0.00050676,120]
[406635067,1772000223060,-4618.55,0.00050685,120]
[406635068,1772000223125,-153.0,0.000508,120]
[406635069,1772000223190,-156.0,0.00050821,120]
[406635070,1772000223253,-214.04331789,0.00050967,120]
[406635071,1772000223314,-150.0,0.00051,120]
[406635072,1772000223370,-1539.80238644,0.00051,120]
[406635073,1772000223426,-2465.0,0.00051,120]
[406635074,1772000223480,-2882.86430093,0.00051,120]
[406635075,1772000223668,-1000.0,0.00051,120]
[406635076,1772000223729,-1551.27168571,0.00051,120]
[406635077,1772000223788,-599.428193,0.00051,120]
[406635078,1772000223843,-150.0,0.00051,40]
[406635079,1772000223898,-154.0,0.00051,120]
[406635080,1772000223954,-409.35,0.00051,30]
[406635081,1772000224011,-2494.0,0.00051039,120]
[406635082,1772000224071,-197.32826645,0.00051088,10]
[406635083,1772000224129,-750.0,0.00051088,10]
[406635084,1772000224190,-597.56,0.00051352,120]
[406635085,1772000224248,-999.7,0.00051376,120]
[406635086,1772000224308,-504.0,0.00051382,20]
[406635087,1772000224364,-40000.00520092,0.000514,120]
[406635088,1772000224422,-1103804.31101539,0.000515,120]
[406635089,1772000244343,-300.0,0.00029899,10]
[406635090,1772000244398,-300.0,0.00030999,10]
[406635091,1772000244523,-654.39,0.00045,120]
[406635092,1772000244600,-150.0,0.000478,10]
[406635093,1772000244661,-250.0,0.00048348,10]
[406635094,1772000244715,-350.0,0.00048896,10]
[406635095,1772000244769,-265.26047751,0.0004935,120]
[406635096,1772000244822,-450.0,0.00049444,10]
[406635097,1772000244875,-550.0,0.00049992,10]
[406635098,1772000244930,-650.0,0.0005054,10]
[406635099,1772000244984,-750.0,0.00051088,10]
[406635100,1772000245042,-151.0,0.000514,30]
[406635101,1772000245099,-3896195.68898461,0.000515,120]
[406635102,1772000245155,-864.0,0.000515,120]
[406635103,1772000245216,-3098119.66053788,0.000515,120]
[406635104,1772000247383,500.0,0.00045796,120]
[406635105,1772000248894,-276.7,0.00045193,120]
[406635106,1772000248970,-999.7,0.00045884,120]
[406635107,1772000249026,-999.7,0.00046575,120]
[406635108,1772000249079,-999.7,0.00047266,120]
[406635109,1772000249133,-999.7,0.00047956,120]
[406635110,1772000249191,-999.7,0.00048647,120]
[406635111,1772000249250,-999.7,0.00049338,120]
[406635112,1772000249303,-151.35,0.0005,40]
[406635113,1772000249356,-999.7,0.00050029,120]
[406635114,1772000249408,-999.7,0.00050719,120]
[406635115,1772000249460,-999.7,0.0005141,120]
[406635116,1772000249514,-32996.42258483,0.000515,56]
[406635117,1772000249571,-1901880.33946212,0.000515,120]
[406635118,1772000249629,-5000000.0,0.000515,120]
[406635119,1772000249698,-55697.88795305,0.000515,120]
[406635120,1772000252336,-4944302.11204695,0.000515,120]
[406635121,1772000252390,-281.008872,0.000515,120]
[406635122,1772000252440,-281.008872,0.000515,120]
[406635123,1772000252491,-281.008872,0.000515,120]
[406635124,1772000252541,-281.008879,0.000515,120]
[406635125,1772000252592,-151.0,0.000515,120]
[406635126,1772000252642,-151.0,0.000515,120]
[406635127,1772000252693,-151.0,0.000515,120]
[406635128,1772000252750,-197.29112626,0.000515,30]
[406635129,1772000252825,-235.52474094,0.000515,30]
[406635130,1772000252901,-850.0,0.00051636,10]
[406635131,1772000252981,-553.0,0.00051695,120]
[406635132,1772000253060,-597.56,0.00051767,120]
[406635133,1772000253118,-179.90496279,0.00051888,120]
[406635134,1772000253173,-7553.25203148,0.00051914,120]
[406635135,1772000253226,-17741.40588137,0.0005199,60]
[406635136,1772000253280,-31228.0,0.00052,120]
[406635137,1772000253331,-305.51431716,0.00052,30]
[406635138,1772000253378,-150.0,0.00052,120]
[406635139,1772000253425,-200.0,0.00052,120]
[406635140,1772000253476,-1097.0,0.00052,120]
[406635141,1772000253524,-53700.0,0.00052,33]
[406635142,1772000253573,-949.6057697,0.00052,120]
[406635143,1772000253622,-1600.0,0.00052,30]
[406635144,1772000253673,-347.82017412,0.00052,120]
[406635145,1772000253724,-2456.0,0.00052032,120]
[406635146,1772000253774,-300.0,0.0005205,10]
[406635147,1772000253823,-500.0,0.00052054,120]
[406635148,1772000253873,-500.0,0.00052054,120]
[406635149,1772000253925,-215.43438171,0.00052054,120]
[406635150,1772000253980,-597.08,0.00052138,120]
[406635151,1772000254032,-597.56,0.00052183,120]
[406635152,1772000254085,-335.14008447,0.00052184,10]
[406635153,1772000254139,-153.0,0.000523,120]
[406635154,1772000254191,-154.0,0.000523,120]
[406635155,1772000254244,-500.0,0.00052328,120]
[406635156,1772000254298,-2091.1475597,0.0005233,120]
[406635157,1772000254349,-500.0,0.00052356,60]
[406635158,1772000254398,-900.0,0.00052356,60]
[406635159,1772000254446,-500.0,0.00052356,60]
[406635160,1772000254497,-1353.3081,0.000525,100]
[406635161,1772000254546,-6300.1478525,0.000525,120]
[406635162,1772000254596,-87526.3333628,0.000525,30]
[406635163,1772000254646,-152.72020798,0.00052562,120]
[406635164,1772000254697,-597.56,0.00052599,120]
[406635165,1772000254748,-280.34654455,0.00052602,120]
[406635166,1772000254800,-362.82285413,0.00052688,120]
[406635167,1772000254851,-151.0,0.00052797,68]
[406635168,1772000254900,-504.0,0.00052813,20]
[406635169,1772000254949,-150.0,0.00052838,120]
[406635170,1772000255002,-151.0,0.00052874,60]
[406635171,1772000255055,-900.0,0.00052904,60]
[406635172,1772000255110,-1040.0,0.00052912,120]
[406635173,1772000255168,-1340.0,0.00052912,120]
[406635174,1772000255378,-1210.0,0.00052912,120]
[406635175,1772000255429,-1277.0,0.00052912,120]
[406635176,1772000255481,-2539.95196536,0.00052989,86]
[406635177,1772000255534,-151.0,0.00052999,56]
[406635178,1772000255588,-151.0,0.00052999,70]
[406635179,1772000255642,-151.0,0.00052999,72]
[406635180,1772000255698,-151.0,0.00052999,75]
[406635181,1772000255751,-151.0,0.00052999,77]
[406635182,1772000255806,-151.0,0.00052999,79]
[406635183,1772000255857,-151.0,0.00052999,83]
[406635184,1772000255909,-151.0,0.00052999,85]
[406635185,1772000255962,-151.0,0.00052999,95]
[406635186,1772000256020,-151.0,0.00052999,120]
[406635187,1772000256074,-150.0,0.00053,120]
[406635188,1772000256129,-2465.0,0.00053,120]
[406635189,1772000256183,-500.0,0.00053,30]
[406635190,1772000256236,-500.0,0.00053,60]
[406635191,1772000256286,-500.0,0.00053,60]
[406635192,1772000256336,-364.33297037,0.00053,30]
[406635193,1772000256387,-597.56,0.00053015,120]
[406635194,1772000256437,-74050.32245128,0.000533,120]
[406635195,1772000256489,-553.0,0.00053327,120]
[406635196,1772000256539,-1739309.20511938,0.0005342,120]
[406635197,1772000276799,-151.0,0.00043278,120]
[406635198,1772000276888,-1326.95458225,0.0005,120]
[406635199,1772000276946,-151.0,0.000515,120]
[406635200,1772000277006,-500.0,0.00053,30]
[406635201,1772000277066,-151.0,0.00053015,30]
[406635202,1772000277128,-500.0,0.00053419,120]
[406635203,1772000277189,-500.0,0.00053419,120]
[406635204,1772000277247,-500.0,0.00053419,120]
[406635205,1772000277302,-500.0,0.00053419,120]
[406635206,1772000277354,-500.0,0.00053419,120]
[406635207,1772000277404,-150.0,0.00053419,120]
[406635208,1772000277454,-500.0,0.00053419,120]
[406635209,1772000277509,-500.0,0.00053419,120]
[406635210,1772000277559,-500.0,0.00053419,120]
[406635211,1772000277614,-550.52936974,0.00053419,120]
[406635212,1772000277669,-417655.52488062,0.0005342,120]
[406635213,1772000277718,-551.73370001,0.00053424,120]
[406635214,1772000277772,-597.56,0.00053431,120]
[406635215,1772000277828,-500.0,0.00053452,60]
[406635216,1772000277883,-900.0,0.00053452,60]
[406635217,1772000277942,-500.0,0.00053452,60]
[406635218,1772000277998,-151.0,0.00053499,120]
[406635219,1772000278057,-928.52835387,0.000535,120]
[406635220,1772000278115,-4835.25709895,0.000535,120]
[406635221,1772000278170,-2322752.32253338,0.000535,120]
[406635222,1772000278224,-151.0,0.00053547,60]
[406635223,1772000278278,-151.0,0.00053619,81]
[406635224,1772000278328,-154.0,0.000537,120]
[406635225,1772000278379,-181.6306,0.00053726,120]
[406635226,1772000278430,-597.56,0.00053846,120]
[406635227,1772000278480,-151.0,0.00053899,100]
[406635228,1772000278740,-12824.1639614,0.000539,15]
[406635229,1772000278794,-153.0,0.000539,120]
[406635230,1772000278845,-20985.13962564,0.000539,120]
[406635231,1772000278897,-7553.25203148,0.00053914,120]
[406635232,1772000278950,-830232.11732097,0.0005392,120]
[406635233,1772000279004,-64496.14866906,0.0005392,120]
[406635234,1772000279059,-151.0,0.00053999,30]
[406635235,1772000279112,-151.0,0.00053999,88]
[406635236,1772000279166,-151.0,0.00053999,90]
[406635237,1772000279219,-151.0,0.00053999,120]
[406635238,1772000279273,-246.8131322,0.00053999,30]
[406635239,1772000279330,-900.0,0.00054,60]
[406635240,1772000279383,-563360.70901915,0.00054,90]
[406635241,1772000279436,-1000000.0,0.00054,90]
[406635242,1772000279492,-1000000.0,0.00054,90]
[406635243,1772000279553,-740906.05512128,0.00054,90]
[406635244,1772000282833,-259093.94487872,0.00054,90]
[406635245,1772000282892,-1000000.0,0.00054,92]
[406635246,1772000282956,-1000000.0,0.00054,92]
[406635247,1772000283018,-1000000.0,0.00054,92]
[406635248,1772000283082,-1000000.0,0.00054,92]
[406635249,1772000283137,-233.90084991,0.00054,120]
[406635250,1772000283201,-1000000.0,0.00054,36]
[406635251,1772000283263,-1000000.0,0.00054,36]
[406635252,1772000283324,-740672.15427137,0.00054,36]
[406635253,1772000286361,-237.09,0.00041096,120]
[406635254,1772000286494,-259327.84572863,0.00054,36]
[406635255,1772000286552,-1000000.0,0.00054,36]
[406635256,1772000286609,-1000000.0,0.00054,36]
[406635257,1772000286668,-1000000.0,0.00054,36]
[406635258,1772000286724,-1000000.0,0.00054,36]
[406635259,1772000286780,-150.0,0.00054,120]
[406635260,1772000286832,-5000.0,0.00054,120]
[406635261,1772000286884,-5500.0,0.00054,120]
[406635262,1772000286940,-200.0,0.00054,120]
[406635263,1772000287001,-155.40188323,0.00054,120]
[406635264,1772000287054,-3400.0,0.00054,120]
[406635265,1772000287108,-1939.08960714,0.00054,120]
[406635266,1772000287162,-749.28524125,0.00054,120]
[406635267,1772000287215,-438.319919,0.00054,120]
[406635268,1772000287268,-82942.6957298,0.00054,30]
[406635269,1772000287324,-18044.3278531,0.00054,120]
[406635270,1772000287377,-11169.8058696,0.00054,120]
[406635271,1772000287433,-10676.7755022,0.00054,120]
[406635272,1772000287487,-7978.8102837,0.00054,120]
[406635273,1772000287545,-3884.99149223,0.000541,120]
[406635274,1772000287601,-9390.35213503,0.000541,120]
[406635275,1772000287655,-3965.03139691,0.000542,120]
[406635276,1772000287714,-1499899.0,0.0005424,120]
[406635277,1772000287772,-504.0,0.00054244,20]
[406635278,1772000287826,-597.56,0.00054262,120]
[406635279,1772000287878,-8836.76937866,0.00054288,120]
[406635280,1772000287930,-3990.76638548,0.000543,120]
[406635281,1772000287983,-7000.0,0.0005434,120]
[406635282,1772000288042,-99590.98636064,0.000544,30]
[406635283,1772000288102,-3268.6276141,0.00054495,120]
[406635284,1772000288166,-3531.44898738,0.000545,120]
[406635285,1772000288228,-516.53065,0.000545,120]
[406635286,1772000288290,-648.25245928,0.000545,120]
[406635287,1772000288351,-4218.0,0.0005453,81]
[406635288,1772000288406,-500.0,0.00054548,60]
[406635289,1772000288464,-900.0,0.00054548,60]
[406635290,1772000288520,-500.0,0.00054548,60]
[406635291,1772000288575,-8000.0,0.00054585,120]
[406635292,1772000288631,-2000.0,0.000546,90]
[406635293,1772000288688,-1501.48377678,0.00054648,120]
[406635294,1772000288748,-21885.73075274,0.00054652,120]
[406635295,1772000288810,-3610.92290241,0.00054656,120]
[406635296,1772000288865,-3943.66316779,0.00054657,120]
[406635297,1772000289067,-2298.46758582,0.00054661,120]
[406635298,1772000289130,-183.64992884,0.00054664,120]
[406635299,1772000289186,-7480.2733252,0.00054666,120]
[406635300,1772000289243,-2039.95151765,0.00054668,120]
[406635301,1772000289300,-9231.41475361,0.0005467,120]
[406635302,1772000289354,-1182.25418474,0.00054676,120]
[406635303,1772000289411,-1583.63379223,0.00054676,120]
[406635304,1772000289473,-667.60925324,0.00054677,120]
[406635305,1772000289528,-195.64864339,0.00054677,120]
[406635306,1772000289582,-597.56,0.00054678,120]
[406635307,1772000289635,-1433.03664211,0.00054683,120]
[406635308,1772000289692,-221.97586093,0.00054685,120]
[406635309,1772000289747,-230.84345156,0.0005469,120]
[406635310,1772000289801,-4322.73377249,0.0005469,60]
[406635311,1772000289851,-227.93981608,0.0005469,120]
[406635312,1772000289903,-208.36897474,0.00054696,120]
[406635313,1772000289953,-2518.24541518,0.00054697,120]
[406635314,1772000290006,-246.22644382,0.00054698,120]
[406635315,1772000290060,-269.87528554,0.00054699,120]
[406635316,1772000290116,-2874.34867549,0.000547,120]
[406635317,1772000290300,459.64563153,0.00053432,120]
[406635318,1772000290386,1259.0,0.0004579,30]
[406635319,1772000291112,1416.85359805,0.0004579,30]
[406635320,1772000293207,418.0,0.0005476,10]